fUSD/lending_fUSD_20240319
["ID","MTS","AMOUNT","RATE_DAILY","PERIOD"]
[319528430,1710827482409,-500.0,0.00055342,120]
[319528431,1710827482418,-500.0,0.00055342,120]
[319528432,1710827482428,-500.0,0.00055342,120]
[319528433,1710827482438,-500.0,0.00055342,120]
[319528434,1710827482447,-500.0,0.00055342,120]
[319528435,1710827482456,-999.99,0.00055342,120]
[319528436,1710827482465,-150.36291184,0.00055342,120]
[319528437,1710827482477,-500.0,0.00055342,120]
[319528438,1710827482486,-500.0,0.00055342,120]
[319528439,1710827482496,-500.0,0.00055342,120]
[319528440,1710827482506,-500.0,0.00055342,120]
[319528441,1710827482515,-2045.3,0.00055342,120]
[319528442,1710827482524,-759.21,0.00055342,120]
[319528443,1710827482534,-1524.05,0.00055342,120]
[319528444,1710827482543,-500.0,0.00055342,120]
[319528445,1710827482553,-500.0,0.00055342,120]
[319528446,1710827482562,-500.0,0.00055342,120]
[319528447,1710827482572,-500.0,0.00055342,120]
[319528448,1710827482581,-500.0,0.00055342,120]
[319528449,1710827482590,-500.0,0.00055342,120]
[319528450,1710827482600,-809.23,0.00055342,120]
[319528451,1710827482609,-1247.44,0.00055342,120]
[319528452,1710827482620,-500.0,0.00055342,120]
[319528453,1710827482629,-500.0,0.00055342,120]
[319528454,1710827482638,-500.0,0.00055342,120]
[319528455,1710827482648,-500.0,0.00055342,120]
[319528456,1710827482657,-576.17,0.00055342,120]
[319528457,1710827482667,-500.0,0.00055342,120]
[319528458,1710827482677,-500.0,0.00055342,120]
[319528459,1710827482686,-961.43,0.00055342,120]
[319528460,1710827482696,-798.97,0.00055342,120]
[319528461,1710827482705,-1739.68,0.00055342,120]
[319528462,1710827482715,-1188.57,0.00055342,120]
[319528463,1710827482728,-515.11,0.00055342,120]
[319528464,1710827482737,-500.0,0.00055342,120]
[319528465,1710827482747,-500.0,0.00055342,120]
[319528466,1710827482757,-558.28,0.00055342,120]
[319528467,1710827482770,-500.0,0.00055342,120]
[319528468,1710827482779,-500.0,0.00055342,120]
[319528469,1710827482788,-500.0,0.00055342,120]
[319528470,1710827482798,-550.94,0.00055342,120]
[319528471,1710827482809,-1235.92,0.00055342,120]
[319528472,1710827482819,-500.0,0.00055342,120]
[319528473,1710827482828,-500.0,0.00055342,120]
[319528474,1710827482837,-1104.51,0.00055342,120]
[319528475,1710827482847,-500.0,0.00055342,120]
[319528476,1710827482858,-901.96,0.00055342,120]
[319528477,1710827482869,-500.0,0.00055342,120]
[319528478,1710827482879,-500.0,0.00055342,120]
[319528479,1710827482889,-3642.47,0.00055342,120]
[319528480,1710827482900,-518.81,0.00055342,120]
[319528481,1710827482909,-500.0,0.00055342,120]
[319528482,1710827482920,-501.88362002,0.00055342,120]
[319528483,1710827482930,-484.23859929,0.00055342,120]
[319528484,1710827482940,-500.0,0.00055342,120]
[319528485,1710827482950,-500.0,0.00055342,120]
[319528486,1710827482959,-554.97,0.00055342,120]
[319528487,1710827482969,-1020.96,0.00055342,120]
[319528488,1710827482984,-500.0,0.00055342,120]
[319528489,1710827482994,-500.0,0.00055342,120]
[319528490,1710827483004,-502.53985082,0.00055342,120]
[319528491,1710827483015,-500.0,0.00055342,120]
[319528492,1710827483026,-500.0,0.00055342,120]
[319528493,1710827483036,-562.86,0.00055342,120]
[319528494,1710827483046,-934.66,0.00055342,120]
[319528495,1710827483055,-500.0,0.00055342,120]
[319528496,1710827483065,-1112.34,0.00055342,120]
[319528497,1710827483074,-823.49,0.00055342,120]
[319528498,1710827483084,-945.08,0.00055342,120]
[319528499,1710827483094,-1068.94,0.00055342,120]
[319528500,1710827483104,-500.0,0.00055342,120]
[319528501,1710827483115,-500.0,0.00055342,120]
[319528502,1710827483125,-907.18,0.00055342,120]
[319528503,1710827483134,-543.38,0.00055342,120]
[319528504,1710827483144,-1318.29,0.00055342,120]
[319528505,1710827483154,-500.0,0.00055342,120]
[319528506,1710827483165,-938.51,0.00055342,120]
[319528507,1710827483176,-708.65,0.00055342,120]
[319528508,1710827483186,-500.0,0.00055342,120]
[319528509,1710827483196,-675.56,0.00055342,120]
[319528510,1710827483207,-500.0,0.00055342,120]
[319528511,1710827483216,-500.0,0.00055342,120]
[319528512,1710827483234,-1108.77,0.00055342,120]
[319528513,1710827483244,-500.0,0.00055342,120]
[319528514,1710827483255,-657.29,0.00055342,120]
[319528515,1710827483267,-500.0,0.00055342,120]
[319528516,1710827483279,-500.0,0.00055342,120]
[319528517,1710827483290,-500.0,0.00055342,120]
[319528518,1710827483302,-991.97,0.00055342,120]
[319528519,1710827483313,-500.0,0.00055342,120]
[319528520,1710827483324,-956.61,0.00055342,120]
[319528521,1710827483335,-578.44,0.00055342,120]
[319528522,1710827483345,-500.0,0.00055342,120]
[319528523,1710827483356,-500.0,0.00055342,120]
[319528524,1710827483367,-823.71,0.00055342,120]
[319528525,1710827483378,-1621.14,0.00055342,120]
[319528526,1710827483388,-500.0,0.00055342,120]
[319528527,1710827483398,-500.0,0.00055342,120]
[319528528,1710827483407,-156.45293524,0.00055342,120]
[319528529,1710827483417,-500.0,0.00055342,120]
[319528530,1710827483427,-500.0,0.00055342,120]
[319528531,1710827483438,-500.0,0.00055342,120]
[319528532,1710827483448,-500.0,0.00055342,120]
[319528533,1710827483458,-500.0,0.00055342,120]
[319528534,1710827483467,-1395.4,0.00055342,120]
[319528535,1710827483480,-872.35,0.00055342,120]
[319528536,1710827483489,-500.0,0.00055342,120]
[319528537,1710827483499,-863.59,0.00055342,120]
[319528538,1710827483508,-500.0,0.00055342,120]
[319528539,1710827483518,-1782.11,0.00055342,120]
[319528540,1710827483528,-500.0,0.00055342,120]
[319528541,1710827483538,-1222.64,0.00055342,120]
[319528542,1710827483547,-500.0,0.00055342,120]
[319528543,1710827483557,-503.95560742,0.00055342,120]
[319528544,1710827483566,-500.0,0.00055342,120]
[319528545,1710827483576,-500.0,0.00055342,120]
[319528546,1710827483586,-500.0,0.00055342,120]
[319528547,1710827483597,-500.0,0.00055342,120]
[319528548,1710827483609,-651.34,0.00055342,120]
[319528549,1710827483620,-500.0,0.00055342,120]
[319528550,1710827483632,-1507.72,0.00055342,120]
[319528551,1710827483644,-500.0,0.00055342,120]
[319528552,1710827483655,-500.0,0.00055342,120]
[319528553,1710827483667,-1146.22,0.00055342,120]
[319528554,1710827483678,-500.0,0.00055342,120]
[319528555,1710827483690,-500.0,0.00055342,120]
[319528556,1710827483702,-309.19240551,0.00055342,120]
[319528557,1710827483712,-500.0,0.00055342,120]
[319528558,1710827483728,-736.08,0.00055342,120]
[319528559,1710827483742,-500.0,0.00055342,120]
[319528560,1710827483753,-500.0,0.00055342,120]
[319528561,1710827483765,-500.0,0.00055342,2]
[319528562,1710827483778,-1252.35,0.00055342,120]
[319528563,1710827483791,-500.0,0.00055342,120]
[319528564,1710827483801,-500.0,0.00055342,120]
[319528565,1710827483812,-1290.08,0.00055342,120]
[319528566,1710827483823,-403.96410361,0.00055342,120]
[319528567,1710827483833,-607.86,0.00055342,120]
[319528568,1710827483845,-500.0,0.00055342,120]
[319528569,1710827483856,-920.81,0.00055342,120]
[319528570,1710827483867,-500.0,0.00055342,120]
[319528571,1710827483879,-712.48,0.00055342,120]
[319528572,1710827483890,-672.43,0.00055342,120]
[319528573,1710827483901,-500.0,0.00055342,120]
[319528574,1710827483912,-1446.99,0.00055342,120]
[319528575,1710827483924,-500.0,0.00055342,120]
[319528576,1710827483935,-500.0,0.00055342,120]
[319528577,1710827483945,-500.0,0.00055342,120]
[319528578,1710827483956,-681.95,0.00055342,120]
[319528579,1710827483966,-500.0,0.00055342,120]
[319528580,1710827483986,-1203.27,0.00055342,120]
[319528581,1710827483997,-500.0,0.00055342,120]
[319528582,1710827484008,-409.05335944,0.00055342,120]
[319528583,1710827484019,-500.0,0.00055342,120]
[319528584,1710827484029,-184.32054934,0.00055342,120]
[319528585,1710827484039,-636.32,0.00055342,120]
[319528586,1710827484050,-500.0,0.00055342,120]
[319528587,1710827484061,-500.0,0.00055342,120]
[319528588,1710827484072,-500.0,0.00055342,120]
[319528589,1710827484083,-500.0,0.00055342,120]
[319528590,1710827484094,-561.34,0.00055342,120]
[319528591,1710827484105,-992.51,0.00055342,120]
[319528592,1710827484115,-500.0,0.00055342,120]
[319528593,1710827484126,-2015.74,0.00055342,120]
[319528594,1710827484137,-501.63067337,0.00055342,120]
[319528595,1710827484147,-2014.25,0.00055342,120]
[319528596,1710827484157,-500.0,0.00055342,120]
[319528597,1710827484167,-500.0,0.00055342,120]
[319528598,1710827484177,-500.0,0.00055342,120]
[319528599,1710827484187,-500.0,0.00055342,120]
[319528600,1710827484197,-313.12422741,0.00055342,120]
[319528601,1710827484206,-1066.88,0.00055342,120]
[319528602,1710827484216,-500.0,0.00055342,120]
[319528603,1710827484231,-500.52766791,0.00055342,120]
[319528604,1710827484241,-785.05,0.00055342,120]
[319528605,1710827484252,-500.0,0.00055342,120]
[319528606,1710827484262,-500.0,0.00055342,120]
[319528607,1710827484271,-500.0,0.00055342,120]
[319528608,1710827484281,-500.0,0.00055342,120]
[319528609,1710827484292,-449.55547707,0.00055342,120]
[319528610,1710827484302,-500.0,0.00055342,120]
[319528611,1710827484313,-500.0,0.00055342,120]
[319528612,1710827484323,-500.0,0.00055342,120]
[319528613,1710827484333,-3649.43,0.00055342,120]
[319528614,1710827484343,-1361.02,0.00055342,120]
[319528615,1710827484353,-643.73,0.00055342,120]
[319528616,1710827484363,-500.0,0.00055342,120]
[319528617,1710827484374,-691.94,0.00055342,120]
[319528618,1710827484384,-500.0,0.00055342,120]
[319528619,1710827484393,-500.0,0.00055342,120]
[319528620,1710827484403,-500.0,0.00055342,120]
[319528621,1710827484413,-500.0,0.00055342,120]
[319528622,1710827484423,-500.0,0.00055342,120]
[319528623,1710827484434,-1638.2,0.00055342,120]
[319528624,1710827484444,-6349.49,0.00055342,120]
[319528625,1710827484455,-500.0,0.00055342,120]
[319528626,1710827484465,-726.71,0.00055342,120]
[319528627,1710827484480,-500.0,0.00055342,120]
[319528628,1710827484491,-568.95063691,0.00055342,120]
[319528629,1710827484501,-3479.07,0.00055342,120]
[319528630,1710827484512,-500.0,0.00055342,120]
[319528631,1710827484522,-592.5,0.00055342,120]
[319528632,1710827484532,-1487.86,0.00055342,120]
[319528633,1710827484542,-500.0,0.00055342,120]
[319528634,1710827484552,-1617.51,0.00055342,120]
[319528635,1710827484563,-523.58,0.00055342,120]
[319528636,1710827484573,-1381.97,0.00055342,120]
[319528637,1710827484583,-1232.76,0.00055342,120]
[319528638,1710827484593,-500.0,0.00055342,120]
[319528639,1710827484605,-500.0,0.00055342,120]
[319528640,1710827484616,-500.0,0.00055342,120]
[319528641,1710827484626,-500.0,0.00055342,120]
[319528642,1710827484636,-1906.74,0.00055342,120]
[319528643,1710827484648,-1828.07,0.00055342,120]
[319528644,1710827484658,-1034.04,0.00055342,120]
[319528645,1710827484669,-500.0,0.00055342,120]
[319528646,1710827484679,-500.0,0.00055342,120]
[319528647,1710827484694,-500.0,0.00055342,120]
[319528648,1710827484705,-500.0,0.00055342,120]
[319528649,1710827484716,-1028.45,0.00055342,120]
[319528650,1710827484731,-500.0,0.00055342,120]
[319528651,1710827484742,-500.0,0.00055342,120]
[319528652,1710827484754,-1268.03,0.00055342,120]
[319528653,1710827484767,-500.0,0.00055342,120]
[319528654,1710827484778,-500.0,0.00055342,120]
[319528655,1710827484789,-1148.36,0.00055342,120]
[319528656,1710827484800,-500.0,0.00055342,120]
[319528657,1710827484811,-500.0,0.00055342,120]
[319528658,1710827484822,-1653.79,0.00055342,120]
[319528659,1710827484833,-500.0,0.00055342,120]
[319528660,1710827484846,-500.0,0.00055342,120]
[319528661,1710827484858,-1023.81,0.00055342,120]
[319528662,1710827484869,-500.0,0.00055342,120]
[319528663,1710827484880,-500.0,0.00055342,120]
[319528664,1710827484891,-2088.57,0.00055342,120]
[319528665,1710827484903,-500.0,0.00055342,120]
[319528666,1710827484914,-562.53,0.00055342,120]
[319528667,1710827484925,-500.0,0.00055342,2]
[319528668,1710827484936,-500.0,0.00055342,120]
[319528669,1710827484947,-625.71,0.00055342,120]
[319528670,1710827484958,-500.0,0.00055342,120]
[319528671,1710827484969,-500.0,0.00055342,120]
[319528672,1710827484982,-1750.75,0.00055342,120]
[319528673,1710827484992,-501.08,0.00055342,120]
[319528674,1710827485003,-500.0,0.00055342,120]
[319528675,1710827485014,-1049.36,0.00055342,120]
[319528676,1710827485024,-827.55,0.00055342,120]
[319528677,1710827485035,-888.26,0.00055342,120]
[319528678,1710827485046,-982.82,0.00055342,120]
[319528679,1710827485058,-1779.27,0.00055342,120]
[319528680,1710827485069,-500.0,0.00055342,120]
[319528681,1710827485080,-500.0,0.00055342,120]
[319528682,1710827485090,-500.0,0.00055342,120]
[319528683,1710827485102,-500.0,0.00055342,120]
[319528684,1710827485114,-500.0,0.00055342,120]
[319528685,1710827485127,-1147.76,0.00055342,120]
[319528686,1710827485138,-1745.12,0.00055342,120]
[319528687,1710827485150,-500.0,0.00055342,120]
[319528688,1710827485161,-500.0,0.00055342,120]
[319528689,1710827485173,-925.63,0.00055342,120]
[319528690,1710827485184,-854.16,0.00055342,120]
[319528691,1710827485196,-504.19922627,0.00055342,120]
[319528692,1710827485206,-505.11,0.00055342,120]
[319528693,1710827485217,-500.0,0.00055342,120]
[319528694,1710827485231,-734.76,0.00055342,120]
[319528695,1710827485242,-535.28,0.00055342,120]
[319528696,1710827485253,-526.02,0.00055342,120]
[319528697,1710827485265,-500.0,0.00055342,120]
[319528698,1710827485275,-500.0,0.00055342,120]
[319528699,1710827485286,-500.0,0.00055342,120]
[319528700,1710827485297,-500.0,0.00055342,120]
[319528701,1710827485308,-1564.61,0.00055342,120]
[319528702,1710827485318,-1313.48,0.00055342,120]
[319528703,1710827485329,-500.0,0.00055342,120]
[319528704,1710827485340,-2662.67,0.00055342,120]
[319528705,1710827485352,-500.0,0.00055342,120]
[319528706,1710827485363,-500.0,0.00055342,120]
[319528707,1710827485374,-500.0,0.00055342,120]
[319528708,1710827485385,-1397.08,0.00055342,120]
[319528709,1710827485397,-866.38,0.00055342,120]
[319528710,1710827485409,-1097.4,0.00055342,120]
[319528711,1710827485422,-1439.36,0.00055342,120]
[319528712,1710827485433,-500.0,0.00055342,120]
[319528713,1710827485444,-500.0,0.00055342,120]
[319528714,1710827485455,-500.0,0.00055342,120]
[319528715,1710827485466,-1928.4,0.00055342,120]
[319528716,1710827485480,-500.0,0.00055342,120]
[319528717,1710827485492,-500.0,0.00055342,120]
[319528718,1710827485503,-1964.81,0.00055342,120]
[319528719,1710827485514,-660.08,0.00055342,120]
[319528720,1710827485525,-1239.73,0.00055342,120]
[319528721,1710827485536,-500.0,0.00055342,120]
[319528722,1710827485548,-500.0,0.00055342,120]
[319528723,1710827485559,-500.0,0.00055342,120]
[319528724,1710827485570,-967.08,0.00055342,120]
[319528725,1710827485581,-500.0,0.00055342,120]
[319528726,1710827485592,-500.0,0.00055342,120]
[319528727,1710827485604,-1730.58,0.00055342,120]
[319528728,1710827485615,-500.0,0.00055342,120]
[319528729,1710827485626,-500.0,0.00055342,120]
[319528730,1710827485636,-500.0,0.00055342,120]
[319528731,1710827485647,-1374.2,0.00055342,120]
[319528732,1710827485657,-1049.65,0.00055342,120]
[319528733,1710827485668,-2060.17,0.00055342,120]
[319528734,1710827485679,-510.5,0.00055342,120]
[319528735,1710827485690,-500.0,0.00055342,120]
[319528736,1710827485701,-500.0,0.00055342,120]
[319528737,1710827485712,-500.0,0.00055342,120]
[319528738,1710827485723,-500.0,0.00055342,120]
[319528739,1710827485737,-500.0,0.00055342,120]
[319528740,1710827485747,-500.0,0.00055342,120]
[319528741,1710827485763,-1994.76,0.00055342,120]
[319528742,1710827485776,-500.0,0.00055342,120]
[319528743,1710827485787,-1336.07,0.00055342,120]
[319528744,1710827485799,-2991.56,0.00055342,120]
[319528745,1710827485814,-595.79,0.00055342,120]
[319528746,1710827485826,-500.0,0.00055342,120]
[319528747,1710827485837,-430.2723617,0.00055342,120]
[319528748,1710827485848,-500.0,0.00055342,120]
[319528749,1710827485859,-1021.8,0.00055342,120]
[319528750,1710827485870,-500.0,0.00055342,120]
[319528751,1710827485880,-1288.74,0.00055342,120]
[319528752,1710827485892,-500.0,0.00055342,120]
[319528753,1710827485904,-500.0,0.00055342,120]
[319528754,1710827485914,-500.0,0.00055342,120]
[319528755,1710827485926,-1779.68,0.00055342,120]
[319528756,1710827485937,-500.0,0.00055342,120]
[319528757,1710827485948,-1753.04,0.00055342,120]
[319528758,1710827485960,-500.0,0.00055342,120]
[319528759,1710827485971,-500.0,0.00055342,120]
[319528760,1710827485988,-500.0,0.00055342,120]
[319528761,1710827486000,-500.0,0.00055342,120]
[319528762,1710827486011,-500.0,0.00055342,120]
[319528763,1710827486022,-500.0,0.00055342,120]
[319528764,1710827486034,-509.93,0.00055342,120]
[319528765,1710827486045,-2273.03,0.00055342,120]
[319528766,1710827486056,-1250.13,0.00055342,120]
[319528767,1710827486068,-650.12,0.00055342,120]
[319528768,1710827486079,-500.0,0.00055342,120]
[319528769,1710827486090,-1725.58,0.00055342,120]
[319528770,1710827486103,-500.0,0.00055342,120]
[319528771,1710827486114,-500.0,0.00055342,120]
[319528772,1710827486126,-500.0,0.00055342,120]
[319528773,1710827486137,-500.0,0.00055342,120]
[319528774,1710827486149,-593.53,0.00055342,120]
[319528775,1710827486160,-500.0,0.00055342,120]
[319528776,1710827486173,-500.0,0.00055342,120]
[319528777,1710827486184,-1663.43,0.00055342,120]
[319528778,1710827486196,-500.0,0.00055342,120]
[319528779,1710827486208,-500.0,0.00055342,120]
[319528780,1710827486220,-500.0,0.00055342,120]
[319528781,1710827486236,-500.0,0.00055342,120]
[319528782,1710827486248,-500.0,0.00055342,120]
[319528783,1710827486259,-515.58,0.00055342,120]
[319528784,1710827486270,-500.0,0.00055342,120]
[319528785,1710827486281,-500.0,0.00055342,120]
[319528786,1710827486292,-578.4,0.00055342,120]
[319528787,1710827486303,-502.97690179,0.00055342,120]
[319528788,1710827486314,-500.0,0.00055342,120]
[319528789,1710827486324,-580.72,0.00055342,120]
[319528790,1710827486337,-500.0,0.00055342,120]
[319528791,1710827486348,-500.0,0.00055342,120]
[319528792,1710827486359,-1961.16,0.00055342,120]
[319528793,1710827486370,-500.0,0.00055342,120]
[319528794,1710827486381,-500.0,0.00055342,120]
[319528795,1710827486392,-500.0,0.00055342,120]
[319528796,1710827486402,-500.0,0.00055342,120]
[319528797,1710827486414,-633.93,0.00055342,120]
[319528798,1710827486425,-500.0,0.00055342,120]
[319528799,1710827486437,-500.0,0.00055342,120]
[319528800,1710827486448,-500.0,0.00055342,120]
[319528801,1710827486459,-500.0,0.00055342,120]
[319528802,1710827486471,-500.0,0.00055342,120]
[319528803,1710827486488,-500.0,0.00055342,120]
[319528804,1710827486499,-500.0,0.00055342,120]
[319528805,1710827486509,-1389.97,0.00055342,120]
[319528806,1710827486520,-500.0,0.00055342,120]
[319528807,1710827486530,-500.0,0.00055342,120]
[319528808,1710827486540,-1624.64,0.00055342,120]
[319528809,1710827486551,-500.0,0.00055342,120]
[319528810,1710827486561,-500.0,0.00055342,120]
[319528811,1710827486573,-500.0,0.00055342,120]
[319528812,1710827486584,-500.0,0.00055342,120]
[319528813,1710827486595,-459.12584668,0.00055342,120]
[319528814,1710827486606,-500.0,0.00055342,120]
[319528815,1710827486617,-500.0,0.00055342,120]
[319528816,1710827486628,-650.76,0.00055342,120]
[319528817,1710827486638,-500.0,0.00055342,120]
[319528818,1710827486649,-500.0,0.00055342,120]
[319528819,1710827486660,-500.0,0.00055342,120]
[319528820,1710827486671,-500.0,0.00055342,120]
[319528821,1710827487011,-500.0,0.00055342,120]
[319528822,1710827487023,-500.0,0.00055342,120]
[319528823,1710827487035,-500.0,0.00055342,120]
[319528824,1710827487045,-500.0,0.00055342,120]
[319528825,1710827487056,-500.0,0.00055342,120]
[319528826,1710827487066,-500.0,0.00055342,120]
[319528827,1710827487076,-1101.66,0.00055342,120]
[319528828,1710827487087,-805.67,0.00055342,120]
[319528829,1710827487098,-500.0,0.00055342,120]
[319528830,1710827487107,-500.0,0.00055342,120]
[319528831,1710827487118,-7025.4,0.00055342,120]
[319528832,1710827487128,-500.0,0.00055342,120]
[319528833,1710827487140,-500.0,0.00055342,120]
[319528834,1710827487150,-5000.0,0.00055342,120]
[319528835,1710827487161,-500.0,0.00055342,120]
[319528836,1710827487173,-500.0,0.00055342,120]
[319528837,1710827487184,-500.0,0.00055342,120]
[319528838,1710827487194,-500.0,0.00055342,120]
[319528839,1710827487205,-500.0,0.00055342,120]
[319528840,1710827487216,-777.69,0.00055342,120]
[319528841,1710827487230,-340.61817874,0.00055342,120]
[319528842,1710827487241,-1841.28,0.00055342,120]
[319528843,1710827487251,-500.0,0.00055342,120]
[319528844,1710827487260,-500.0,0.00055342,120]
[319528845,1710827487271,-2559.72,0.00055342,120]
[319528846,1710827487282,-503.20106067,0.00055342,120]
[319528847,1710827487293,-329.48,0.00055342,120]
[319528848,1710827487304,-531.0,0.00055342,120]
[319528849,1710827487314,-1186.03,0.00055342,120]
[319528850,1710827487324,-809.07,0.00055342,120]
[319528851,1710827487335,-500.0,0.00055342,120]
[319528852,1710827487345,-829.75,0.00055342,120]
[319528853,1710827487356,-500.0,0.00055342,120]
[319528854,1710827487367,-500.0,0.00055342,120]
[319528855,1710827487377,-500.0,0.00055342,120]
[319528856,1710827487388,-500.0,0.00055342,120]
[319528857,1710827487397,-500.0,0.00055342,120]
[319528858,1710827487407,-1669.33,0.00055342,120]
[319528859,1710827487417,-500.0,0.00055342,120]
[319528860,1710827487427,-500.0,0.00055342,120]
[319528861,1710827487436,-500.0,0.00055342,120]
[319528862,1710827487446,-500.0,0.00055342,120]
[319528863,1710827487456,-1063.99,0.00055342,120]
[319528864,1710827487466,-500.0,0.00055342,120]
[319528865,1710827487478,-500.0,0.00055342,120]
[319528866,1710827487487,-510.09335194,0.00055342,120]
[319528867,1710827487497,-500.0,0.00055342,120]
[319528868,1710827487507,-500.0,0.00055342,120]
[319528869,1710827487517,-1101.81,0.00055342,120]
[319528870,1710827487527,-5517.49,0.00055342,120]
[319528871,1710827487537,-500.0,0.00055342,120]
[319528872,1710827487548,-829.57,0.00055342,2]
[319528873,1710827487558,-723.99,0.00055342,120]
[319528874,1710827487568,-500.0,0.00055342,120]
[319528875,1710827487578,-500.0,0.00055342,120]
[319528876,1710827487588,-500.0,0.00055342,120]
[319528877,1710827487599,-348.53467563,0.00055342,120]
[319528878,1710827487609,-2640.45,0.00055342,120]
[319528879,1710827487620,-2000.0,0.00055342,120]
[319528880,1710827487632,-1422.87,0.00055342,120]
[319528881,1710827487643,-831.79,0.00055342,120]
[319528882,1710827487655,-500.0,0.00055342,120]
[319528883,1710827487666,-500.0,0.00055342,120]
[319528884,1710827487676,-1889.43,0.00055342,120]
[319528885,1710827487687,-501.44,0.00055342,120]
[319528886,1710827487697,-500.0,0.00055342,120]
[319528887,1710827487707,-1718.81,0.00055342,120]
[319528888,1710827487717,-500.0,0.00055342,120]
[319528889,1710827487729,-500.0,0.00055342,120]
[319528890,1710827487739,-500.0,0.00055342,120]
[319528891,1710827487750,-500.0,0.00055342,120]
[319528892,1710827487760,-289.26691114,0.00055342,120]
[319528893,1710827487773,-500.0,0.00055342,120]
[319528894,1710827487782,-568.35,0.00055342,120]
[319528895,1710827487792,-500.0,0.00055342,120]
[319528896,1710827487802,-575.02,0.00055342,120]
[319528897,1710827487813,-17299.49,0.00055342,120]
[319528898,1710827487824,-500.0,0.00055342,120]
[319528899,1710827487833,-1873.11,0.00055342,120]
[319528900,1710827487843,-1866.96,0.00055342,120]
[319528901,1710827487853,-811.96,0.00055342,120]
[319528902,1710827487863,-500.0,0.00055342,120]
[319528903,1710827487873,-500.0,0.00055342,120]
[319528904,1710827487883,-500.0,0.00055342,120]
[319528905,1710827487894,-500.0,0.00055342,120]
[319528906,1710827487904,-500.0,0.00055342,120]
[319528907,1710827487915,-2357.17,0.00055342,120]
[319528908,1710827487924,-347.99865655,0.00055342,120]
[319528909,1710827487934,-500.0,0.00055342,120]
[319528910,1710827487944,-500.0,0.00055342,120]
[319528911,1710827487954,-500.0,0.00055342,120]
[319528912,1710827487965,-500.0,0.00055342,120]
[319528913,1710827487979,-500.0,0.00055342,120]
[319528914,1710827487988,-1040.88,0.00055342,120]
[319528915,1710827487998,-2406.01,0.00055342,120]
[319528916,1710827488008,-500.0,0.00055342,120]
[319528917,1710827488018,-500.0,0.00055342,120]
[319528918,1710827488028,-500.0,0.00055342,120]
[319528919,1710827488039,-500.0,0.00055342,120]
[319528920,1710827488049,-500.0,0.00055342,120]
[319528921,1710827488059,-6514.2,0.00055342,120]
[319528922,1710827488069,-2625.47,0.00055342,120]
[319528923,1710827488079,-642.2,0.00055342,120]
[319528924,1710827488090,-1089.93,0.00055342,120]
[319528925,1710827488100,-660.71,0.00055342,120]
[319528926,1710827488110,-1126.8,0.00055342,120]
[319528927,1710827488121,-500.0,0.00055342,120]
[319528928,1710827488131,-500.0,0.00055342,120]
[319528929,1710827488141,-500.0,0.00055342,120]